bitfinex/quotes_BTCUSD_20251231
["timestamp","ask_amount","ask_price","bid_price","bid_amount"]
[1767196145923,0.41029,88107.0,88097.0,0.46385326]
[1767196146126,0.40974,88107.0,88097.0,0.46385326]
[1767196146440,0.41029,88110.0,88099.0,0.08488718]
[1767196146614,0.41029,88110.0,88098.0,0.06810585]
[1767196146615,0.41029,88110.0,88098.0,0.09623817]
[1767196146816,0.41029,88110.0,88100.0,0.08488718]
[1767196147034,0.41029,88120.0,88100.0,0.08488718]
[1767196147035,0.90868647,88120.0,88103.0,0.06810197]
[1767196147242,0.90868647,88120.0,88104.0,0.08488718]
[1767196147243,0.0114,88116.0,88104.0,0.08488718]
[1767196147446,0.0114,88116.0,88104.0,0.1529885]
[1767196148283,0.0114,88116.0,88105.0,0.01135009]
[1767196148658,0.0114,88116.0,88106.0,0.01134996]
[1767196148854,0.0114,88116.0,88105.0,0.06810031]
[1767196149264,0.0114,88116.0,88106.0,0.01134996]
[1767196150225,0.0114,88116.0,88105.0,0.06810031]
[1767196150377,0.0114,88116.0,88105.0,0.01135009]
[1767196150933,0.0114,88116.0,88106.0,0.01134996]
[1767196151298,0.90868647,88120.0,88105.0,0.01135009]
[1767196151524,0.90868647,88120.0,88104.0,0.1643885]
[1767196151525,4.412e-05,88122.0,88115.0,0.05674402]
[1767196151849,0.49839647,88133.0,88120.0,0.01134816]
[1767196152005,0.49839647,88133.0,88118.0,0.01134841]
[1767196152006,0.50979647,88133.0,88118.0,0.08484306]
[1767196152198,0.50979647,88133.0,88120.0,0.41029]
[1767196152443,0.50979647,88133.0,88118.0,0.08484306]
[1767196152660,0.41029,88130.0,88118.0,0.08484306]
[1767196152848,0.50979647,88133.0,88118.0,0.08484306]
[1767196152849,0.50979647,88133.0,88120.0,0.41029]
[1767196156109,0.0114,88133.0,88121.0,0.08484306]
[1767196156515,0.0002,88134.0,88121.0,0.08484306]
[1767196156680,0.0002,88134.0,88125.0,0.08484306]
[1767196159238,0.000549,88125.0,88124.0,0.41029]
[1767196159478,0.00055,88124.0,88112.0,0.08484306]
[1767196159655,0.48620497,88123.0,88113.0,0.0114]
[1767196160440,0.48620497,88123.0,88113.0,0.42169]
[1767196160640,0.48620497,88133.0,88113.0,0.42169]
[1767196160845,0.48620497,88133.0,88113.0,0.0114]
[1767196161047,0.48620497,88129.0,88112.0,4.412e-05]
[1767196161208,0.48620497,88129.0,88114.0,0.0114]
[1767196162254,0.0114,88131.0,88119.0,0.41029]
[1767196162458,0.01135794,88131.0,88119.0,0.41029]
[1767196162605,0.01135794,88131.0,88119.0,0.49513306]
[1767196162805,0.01135794,88131.0,88120.0,0.08484306]
[1767196163207,0.01135794,88131.0,88120.0,0.14158264]
[1767196163406,0.01135794,88131.0,88121.0,0.41029]
[1767196163617,0.01135794,88131.0,88120.0,0.08484306]
[1767196163823,0.0001476,88149.0,88131.0,0.0959898]
[1767196164008,0.00010628,88149.0,88139.0,0.82058]
[1767196164207,0.46387734,88162.0,88147.0,0.01134468]
[1767196164408,0.46387734,88162.0,88154.0,0.01134378]
[1767196164606,0.46387734,88162.0,88155.0,0.06806122]
[1767196164607,0.00024033,88162.0,88155.0,0.06806122]
[1767196164847,0.00024033,88162.0,88152.0,0.01134404]
[1767196165182,0.00024033,88162.0,88154.0,0.01134378]
[1767196165183,0.00050143,88158.0,88154.0,0.01134378]
[1767196165384,0.00050143,88158.0,88153.0,0.0114]
[1767196165949,0.46363701,88157.0,88153.0,0.010851]
[1767196166149,0.46363701,88157.0,88143.0,8.28e-05]
[1767196166374,0.46363701,88157.0,88144.0,0.0114]
[1767196167138,0.00035383,88158.0,88147.0,0.41029]
[1767196167796,0.00035383,88158.0,88148.0,0.41029]
[1767196168093,0.00035383,88158.0,88149.0,0.09276714]
[1767196169074,0.46399084,88158.0,88148.0,0.41029]
[1767196169276,0.46399084,88158.0,88144.0,0.0114]
[1767196169854,0.46399084,88158.0,88144.0,0.02274507]
[1767196170441,0.46399084,88158.0,88144.0,0.0114]
[1767196170572,0.46399084,88158.0,88148.0,0.41029]
[1767196171817,0.46399084,88158.0,88144.0,0.0114]
[1767196172859,0.46399084,88158.0,88143.0,8.28e-05]
[1767196173030,0.46371901,88143.0,88134.0,0.01149635]
[1767196173229,0.46363701,88143.0,88135.0,0.0114]
[1767196173450,0.46363701,88143.0,88134.0,0.00015]
[1767196174038,0.46363701,88143.0,88136.0,0.0113461]
[1767196174253,0.46363701,88154.0,88139.0,0.05672857]
[1767196174455,0.46363701,88154.0,88140.0,0.42163558]
[1767196174655,0.46363701,88154.0,88141.0,0.01134545]
[1767196175019,0.46363701,88154.0,88144.0,0.0567248]
[1767196175220,0.0114,88155.0,88144.0,0.47835987]
[1767196175429,0.0114,88155.0,88145.0,0.01134494]
[1767196175626,0.00035383,88158.0,88145.0,0.01134494]
[1767196175829,0.00035383,88158.0,88146.0,0.01134481]
[1767196176602,0.00035383,88158.0,88144.0,0.06806987]
[1767196176782,0.00035383,88158.0,88144.0,0.01134507]
[1767196177548,0.00035383,88158.0,88146.0,0.01134481]
[1767196177920,0.00035383,88158.0,88148.0,0.41029]
[1767196178123,8.3e-07,88158.0,88152.0,0.01134404]
[1767196178825,8.3e-07,88158.0,88151.0,0.01134417]
[1767196179261,8.3e-07,88158.0,88152.0,0.01134404]
[1767196179668,0.01134056,88179.0,88151.0,0.06806501]
[1767196179669,0.46378701,88175.0,88155.0,0.09260961]
[1767196179877,0.46389307,88175.0,88160.0,0.42163301]
[1767196180113,0.41029,88170.0,88160.0,0.068058]
[1767196180249,0.46363701,88169.0,88156.0,0.0114]
[1767196182109,0.46363701,88169.0,88157.0,0.01134339]
[1767196182309,0.46363701,88169.0,88156.0,0.07946091]
[1767196182481,0.46363701,88169.0,88159.0,0.41029]
[1767196182816,0.01165606,88175.0,88159.0,0.47834878]
[1767196183049,0.47529307,88175.0,88160.0,0.05671501]
[1767196183258,0.47529307,88175.0,88160.0,0.01134301]
[1767196183465,0.46389307,88175.0,88164.0,0.01134249]
[1767196183682,0.46389307,88175.0,88166.0,0.06805302]
[1767196183889,0.46389307,88175.0,88163.0,0.0114]
[1767196183890,0.45219294,88175.0,88163.0,0.0114]
[1767196184105,0.45219294,88175.0,88171.0,0.01134159]
[1767196184310,0.45219294,88175.0,88166.0,0.06805314]
[1767196184523,0.45219294,88175.0,88166.0,0.01134224]
[1767196184736,0.46363701,88182.0,88165.0,0.41029]
[1767196184958,0.00028417,88176.0,88165.0,0.41029]
[1767196185166,0.00028417,88176.0,88163.0,0.11530285]
[1767196186020,0.00028417,88176.0,88163.0,0.12664547]
[1767196186220,0.00028417,88176.0,88164.0,0.01134249]
[1767196186424,0.00028417,88176.0,88168.0,0.01134198]
[1767196186628,8.817e-05,88176.0,88168.0,0.11524483]
[1767196186834,8.817e-05,88176.0,88167.0,0.17195515]
[1767196187125,8.817e-05,88176.0,88168.0,0.01134198]
[1767196187403,8.817e-05,88176.0,88164.0,0.05671222]
[1767196187622,8.817e-05,88176.0,88132.0,0.45386028]
[1767196187623,0.46363701,88171.0,88165.0,0.0114]
[1767196187801,0.0004,88188.0,88186.0,0.10390285]
[1767196187993,0.0004,88205.0,88186.0,0.10390285]
[1767196187994,0.0004,88205.0,88199.0,0.0680278]
[1767196188200,0.0004,88208.0,88199.0,0.11549485]
[1767196188429,0.46390821,88216.0,88199.0,0.10415686]
[1767196188608,0.46390821,88216.0,88193.0,0.10415686]
[1767196188829,0.46363701,88209.0,88194.0,0.0114]
[1767196189065,0.46363701,88209.0,88194.0,0.11555686]
[1767196189250,0.46363701,88209.0,88195.0,0.0114]
[1767196189390,0.46363701,88209.0,88193.0,0.00010599]
[1767196189596,0.00055,88195.0,88194.0,0.0114]
[1767196189794,0.46363701,88203.0,88193.0,0.00010599]
[1767196189997,0.474975,88199.0,88194.0,0.0114]
[1767196190219,0.474975,88199.0,88190.0,0.0114]
[1767196190220,0.46363701,88198.0,88190.0,0.0114]
[1767196190461,0.00055,88190.0,88189.0,0.0114]
[1767196190625,0.46418701,88190.0,88188.0,0.0114]
[1767196190827,0.46363701,88190.0,88188.0,0.0114]
[1767196191037,0.46363701,88198.0,88188.0,0.0114]
[1767196191242,0.46363701,88198.0,88187.0,0.0114]
[1767196191450,0.48020651,88194.0,88187.0,0.0114]
[1767196191611,0.48020651,88194.0,88176.0,0.12534228]
[1767196191864,0.48020651,88194.0,88172.0,0.0001422]
[1767196191865,0.48020651,88192.0,88177.0,0.0114]
[1767196192060,0.48020651,88192.0,88180.0,0.41029]
[1767196192261,0.48020651,88198.0,88180.0,0.41029]
[1767196192599,0.48020651,88198.0,88181.0,0.12534228]
[1767196192761,0.48020651,88198.0,88178.0,0.12534228]
[1767196192975,0.48020651,88198.0,88181.0,0.12534228]
[1767196193174,8.415e-05,88199.0,88188.0,0.41029]
[1767196193373,8.415e-05,88199.0,88189.0,0.0114]
[1767196194150,0.0566803,88215.0,88199.0,8.4e-05]
[1767196194151,0.49154245,88215.0,88199.0,8.4e-05]
[1767196194304,0.49154245,88215.0,88200.0,0.41029]
[1767196194305,0.48020651,88214.0,88200.0,0.41029]
[1767196194503,0.48020651,88214.0,88199.0,0.011484]
[1767196194747,0.48020651,88214.0,88199.0,0.0114]
[1767196197203,0.48020651,88214.0,88189.0,0.01133928]
[1767196197204,0.48020651,88214.0,88200.0,0.0114]
[1767196197461,0.48020651,88214.0,88201.0,0.0114]
[1767196198100,0.48020651,88214.0,88202.0,0.0114]
[1767196198301,0.48031248,88214.0,88202.0,0.0114]
[1767196199365,0.48031248,88214.0,88191.0,0.10974228]
[1767196199572,0.48020651,88208.0,88186.0,0.10974228]
[1767196199896,0.48020651,88208.0,88187.0,0.0114]
[1767196200111,0.48020651,88208.0,88187.0,0.07943698]
[1767196200305,0.48020651,88208.0,88186.0,0.10974228]
[1767196200486,0.48020651,88204.0,88187.0,0.0114]
[1767196200694,0.48020651,88204.0,88188.0,0.0114]
[1767196200912,0.48020651,88204.0,88189.0,0.0114]
[1767196201449,0.0114,88211.0,88190.0,0.10974228]
[1767196201652,0.48020651,88210.0,88189.0,0.0114]
[1767196201777,0.48020651,88210.0,88190.0,0.10974228]
[1767196201974,0.48020651,88210.0,88193.0,0.01133876]
[1767196202179,0.48020651,88210.0,88192.0,0.01133889]
[1767196202378,0.48020651,88210.0,88194.0,0.01133863]
[1767196202621,0.48020651,88210.0,88195.0,0.05669202]
[1767196202827,0.48020651,88210.0,88196.0,0.10974228]
[1767196203026,0.48020651,88210.0,88197.0,0.0114]
[1767196203436,0.48020651,88210.0,88197.0,0.02273825]
[1767196203748,0.48020651,88210.0,88197.0,0.0114]
[1767196204090,0.48020651,88210.0,88198.0,0.01133812]
[1767196204453,0.48020651,88210.0,88197.0,0.07942933]
[1767196204454,0.48020651,88210.0,88188.0,0.10974228]
[1767196204627,0.48020651,88210.0,88195.0,0.01133851]
[1767196204831,0.48020651,88210.0,88195.0,0.10974228]
[1767196205028,0.48020651,88210.0,88195.0,0.17777329]
[1767196205229,0.48020651,88210.0,88196.0,0.06803003]
[1767196205454,0.48020651,88210.0,88197.0,0.0114]
[1767196205873,0.48020651,88210.0,88198.0,0.01133812]
[1767196206082,0.47965751,88210.0,88197.0,0.02273825]
[1767196206255,0.47965751,88210.0,88197.0,0.0114]
[1767196207652,0.47965751,88210.0,88198.0,0.0114]
[1767196209353,0.47965751,88210.0,88194.0,0.06803174]
[1767196209354,0.48075551,88198.0,88185.0,0.01133979]
[1767196209559,0.48075551,88198.0,88186.0,0.02273966]
[1767196209726,0.48020651,88205.0,88193.0,0.01133876]
[1767196209927,0.48020651,88205.0,88194.0,0.0114]
[1767196211771,0.48020651,88205.0,88192.0,0.0114]
[1767196212354,0.48020651,88205.0,88184.0,0.06803899]
[1767196212555,0.48020651,88205.0,88185.0,0.01133979]
[1767196213167,0.48020651,88205.0,88183.0,0.02274005]
[1767196213168,0.48020651,88205.0,88183.0,0.0114]
[1767196214206,0.48020651,88205.0,88184.0,0.01133992]
[1767196214589,0.48020651,88205.0,88187.0,0.05669758]
[1767196214804,0.48020651,88205.0,88187.0,0.01133953]
[1767196214998,0.48020651,88205.0,88186.0,0.06803768]
[1767196215357,0.48020651,88203.0,88183.0,0.0114]
[1767196216154,0.48020651,88192.0,88178.0,0.03045321]
[1767196216299,0.48020651,88192.0,88177.0,0.0114]
[1767196217736,0.48020651,88192.0,88178.0,0.01134069]
[1767196217931,0.48020651,88192.0,88177.0,0.02274082]
[1767196218093,0.48020651,88192.0,88177.0,0.0114]
[1767196218306,0.48020651,88192.0,88178.0,0.01134069]
[1767196218856,0.48020651,88192.0,88177.0,0.02274082]
[1767196219296,0.4990129,88189.0,88173.0,0.03045321]
[1767196219473,0.4990129,88189.0,88172.0,0.0001422]
[1767196220456,0.4990129,88189.0,88170.0,0.0002]
[1767196220931,0.4990129,88187.0,88170.0,0.0002]
[1767196221138,0.4990129,88185.0,88170.0,0.0002]
[1767196222541,0.4990129,88185.0,88170.0,0.14483348]
[1767196222947,0.4990129,88185.0,88170.0,0.1561752]
[1767196223263,0.0114,88186.0,88170.0,0.14483348]
[1767196223465,0.010851,88186.0,88178.0,0.01134069]
[1767196223889,0.010851,88186.0,88177.0,0.06804492]
[1767196224088,0.010851,88186.0,88176.0,0.06804565]
[1767196224289,0.010851,88186.0,88177.0,0.05670412]
[1767196224467,0.010851,88186.0,88173.0,0.01134134]
[1767196224670,0.46758751,88186.0,88172.0,0.01134146]
[1767196224892,0.46758751,88186.0,88172.0,0.06804876]
[1767196225228,0.46758751,88186.0,88170.0,0.14483348]
[1767196225367,0.46758751,88186.0,88170.0,0.0002]
[1767196231123,0.45673651,88186.0,88170.0,0.01154172]
[1767196231382,0.0114,88185.0,88172.0,0.01134146]
[1767196231679,0.0114,88185.0,88172.0,0.06804833]
[1767196232038,0.0114,88185.0,88173.0,0.06804803]
[1767196232244,0.0114,88185.0,88171.0,0.01134159]
[1767196232442,0.0114,88185.0,88170.0,0.14483348]
[1767196232443,0.46813651,88185.0,88170.0,0.14483348]
[1767196232664,0.46813651,88185.0,88170.0,0.1561752]
[1767196233063,0.46813651,88185.0,88170.0,0.14483348]
[1767196233281,0.46813651,88185.0,88170.0,0.0002]
[1767196234830,0.45673651,88179.0,88170.0,0.0002]
[1767196238175,0.45673651,88184.0,88170.0,0.0002]
[1767196239175,0.45673651,88184.0,88170.0,0.01154172]
[1767196239804,0.45673651,88184.0,88171.0,0.01134159]
[1767196240796,0.45673651,88184.0,88170.0,0.01154172]
[1767196240973,0.45673651,88184.0,88170.0,0.0002]
[1767196242237,0.45673651,88184.0,88170.0,0.01154172]
[1767196242575,0.45673651,88184.0,88170.0,0.0002]
[1767196243195,0.45673651,88184.0,88170.0,0.01154172]
[1767196243396,0.45673651,88184.0,88170.0,0.0002]
[1767196243962,0.45673651,88184.0,88170.0,0.01154172]
[1767196244568,0.45673651,88184.0,88170.0,0.0002]
[1767196244764,0.45673651,88184.0,88172.0,0.01134146]
[1767196245003,0.45673651,88184.0,88171.0,0.06804956]
[1767196245880,0.45673651,88194.0,88184.0,0.00055]
[1767196246082,0.0114,88193.0,88179.0,0.14463348]
[1767196246282,0.0114,88193.0,88179.0,0.15597404]
[1767196246926,0.0002067,88203.0,88193.0,0.00055]
[1767196247239,0.45673651,88202.0,88187.0,0.0114]
[1767196247448,0.45673651,88196.0,88186.0,0.0114]
[1767196247652,0.45673651,88194.0,88186.0,0.0114]
[1767196248180,0.45673651,88194.0,88186.0,0.010851]
[1767196248409,0.86632026,88200.0,88186.0,0.010851]
[1767196250248,0.45673651,88200.0,88186.0,0.010851]
[1767196250452,0.86632026,88200.0,88186.0,0.010851]
[1767196253799,0.45673651,88200.0,88186.0,0.010851]
[1767196253978,0.86632026,88200.0,88186.0,0.010851]
[1767196255607,0.40958375,88200.0,88186.0,0.010851]
[1767196255824,0.46813872,88199.0,88186.0,0.010851]
[1767196257052,0.46813872,88199.0,88189.0,0.05669612]
[1767196257345,0.46813872,88199.0,88189.0,0.01133928]
[1767196257643,0.46813872,88199.0,88188.0,0.01133941]
[1767196257823,0.46813872,88199.0,88187.0,0.06803681]
[1767196258225,0.46813872,88199.0,88188.0,0.01133941]
[1767196258422,0.46702372,88199.0,88186.0,0.02219066]
[1767196258805,0.46702372,88199.0,88187.0,0.01133953]
[1767196259312,0.46702372,88199.0,88186.0,0.06803748]
[1767196259506,0.46702372,88199.0,88185.0,0.0114]
[1767196259926,0.46702372,88199.0,88185.0,0.01133979]
[1767196260133,0.46702372,88199.0,88187.0,0.01133953]
[1767196260333,0.46702372,88199.0,88187.0,0.06803719]
[1767196260556,0.46702372,88199.0,88186.0,0.068038]
[1767196260783,0.46702372,88199.0,88185.0,0.02273979]
[1767196260983,0.46702372,88199.0,88186.0,0.01133966]
[1767196261339,0.46702372,88199.0,88185.0,0.0114]
[1767196261853,0.46702372,88199.0,88180.0,0.63618146]
[1767196261854,0.46702372,88199.0,88170.0,0.22703296]
[1767196262057,0.40937296,88190.0,88182.0,0.01134018]
[1767196262286,0.46813872,88191.0,88190.0,0.00055]
[1767196262497,0.46813872,88199.0,88190.0,0.00055]
[1767196262645,0.46813872,88199.0,88185.0,0.0680382]
[1767196262844,0.46813872,88199.0,88187.0,0.01133953]
[1767196263045,0.40937296,88200.0,88189.0,0.40937296]
[1767196263267,0.40937296,88200.0,88186.0,0.15708814]
[1767196263478,0.40937296,88200.0,88187.0,0.01133953]
[1767196263677,0.40937296,88200.0,88188.0,0.06803645]
[1767196263877,0.40937296,88200.0,88188.0,0.01133941]
[1767196264238,0.40937296,88200.0,88187.0,0.06803695]
[1767196264361,0.87751168,88200.0,88186.0,0.15714848]
[1767196264563,0.87751168,88200.0,88187.0,0.01133953]
[1767196264797,0.46813872,88199.0,88186.0,0.0114]
[1767196265014,0.000549,88187.0,88186.0,0.0114]
[1767196265215,0.46813872,88191.0,88186.0,0.0114]
[1767196265993,0.46833202,88191.0,88186.0,0.0114]
[1767196266598,0.0001933,88191.0,88186.0,0.0114]
[1767196267255,0.46813872,88190.0,88182.0,0.0114]
[1767196267432,0.46813872,88185.0,88179.0,0.0114]
[1767196267632,0.46809636,88185.0,88177.0,0.0114]
[1767196268089,0.46809636,88185.0,88177.0,0.06810361]
[1767196268236,0.46754636,88185.0,88177.0,0.0114]
[1767196270446,0.46754636,88185.0,88175.0,0.03045321]
[1767196270447,0.000549,88177.0,88175.0,0.03045321]
[1767196270654,0.000549,88177.0,88172.0,0.03045321]
[1767196270966,0.40937296,88182.0,88172.0,0.04179467]
[1767196271209,0.87751168,88182.0,88172.0,0.03045321]
[1767196271532,0.46813872,88181.0,88170.0,0.0002]
[1767196271686,0.46813872,88179.0,88170.0,0.0002]
[1767196272749,0.46813872,88179.0,88170.0,0.01154172]
[1767196272939,0.46813872,88179.0,88171.0,0.01134159]
[1767196273223,0.46813872,88179.0,88171.0,0.06804903]
[1767196273429,0.46813872,88179.0,88173.0,0.01134134]
[1767196273776,0.46813872,88179.0,88172.0,0.05670728]
[1767196273985,0.46813872,88179.0,88171.0,0.01134159]
[1767196274225,0.46813872,88179.0,88170.0,0.0002]
[1767196275183,0.46813872,88179.0,88167.0,0.03045321]
[1767196275368,0.46813872,88179.0,88167.0,0.08716365]
[1767196275721,0.46813872,88179.0,88168.0,0.01134198]
[1767196276078,0.40937296,88180.0,88168.0,0.06805144]
[1767196276369,0.40937296,88180.0,88173.0,0.01134134]
[1767196276570,0.87751168,88183.0,88173.0,0.01134134]
[1767196276772,0.87751168,88183.0,88174.0,0.01134121]
[1767196276922,0.87751168,88183.0,88173.0,0.01134134]
[1767196277124,0.87751168,88183.0,88174.0,0.01134121]
[1767196277338,0.87751168,88183.0,88174.0,0.06804667]
[1767196277339,0.46813872,88183.0,88174.0,0.06804667]
[1767196277519,0.46813872,88183.0,88176.0,0.01134095]
[1767196277715,0.46813872,88183.0,88175.0,0.05670522]
[1767196277964,0.46813872,88183.0,88176.0,0.01134095]
[1767196278135,0.46813872,88183.0,88174.0,0.06804667]
[1767196278320,0.46813872,88183.0,88173.0,0.01134134]
[1767196278535,0.46813872,88183.0,88174.0,0.01134121]
[1767196278956,0.46813872,88183.0,88173.0,0.01134134]
[1767196279382,0.91587362,88190.0,88174.0,0.01134121]
[1767196279609,0.91587362,88190.0,88175.0,0.01134108]
[1767196279886,0.49490736,88189.0,88178.0,0.01134069]
[1767196280091,0.49490736,88189.0,88176.0,0.01134095]
[1767196280296,0.49490736,88189.0,88175.0,0.06804639]
[1767196280501,0.90428032,88186.0,88174.0,0.01134121]
[1767196280708,0.40937296,88184.0,88172.0,0.05670673]
[1767196280886,0.90428032,88184.0,88172.0,0.05670673]
[1767196281061,0.90428032,88184.0,88174.0,0.01134121]
[1767196281472,0.90428032,88184.0,88173.0,0.06804793]
[1767196281647,0.90428032,88184.0,88174.0,0.01134121]
[1767196282261,0.90428032,88184.0,88175.0,0.01134108]
[1767196282595,0.90428032,88184.0,88174.0,0.0680472]
[1767196282990,0.90428032,88184.0,88175.0,0.01134108]
[1767196283206,0.49490736,88184.0,88175.0,0.06804644]
[1767196283625,0.49490736,88184.0,88175.0,0.06804613]
[1767196284034,0.49490736,88184.0,88175.0,0.01134108]
[1767196284409,0.49490736,88184.0,88170.0,0.0680502]
[1767196284625,0.49490736,88184.0,88169.0,0.06804986]
[1767196284836,0.49490736,88184.0,88173.0,0.01134134]
[1767196285006,0.40937296,88183.0,88171.0,0.06804911]
[1767196285185,0.49490736,88184.0,88173.0,0.01134134]
[1767196285383,0.40937296,88183.0,88173.0,0.01134134]
[1767196285758,0.40937296,88183.0,88173.0,0.06804801]
[1767196285977,0.40937296,88183.0,88174.0,0.01134121]
[1767196286507,0.40937296,88183.0,88172.0,0.01134146]
[1767196286657,0.40937296,88183.0,88171.0,0.01134159]
[1767196286856,0.40937296,88183.0,88172.0,0.06804859]
[1767196287062,0.40937296,88183.0,88173.0,0.01134134]
[1767196287266,0.86728816,88183.0,88172.0,0.01134146]
[1767196287499,0.86728816,88183.0,88167.0,0.04179532]
[1767196287500,0.4579152,88182.0,88167.0,0.04179532]
[1767196287823,0.4579152,88180.0,88164.0,0.03045321]
[1767196288118,0.4579152,88180.0,88165.0,0.01134236]
[1767196288325,0.4579152,88180.0,88164.0,0.03045321]
[1767196288685,0.4579152,88180.0,88166.0,0.011051]
[1767196289105,0.86728816,88180.0,88166.0,0.011051]
[1767196290228,0.40937296,88176.0,88162.0,0.03081295]
[1767196290434,0.4584652,88162.0,88154.0,0.01134378]
[1767196290637,0.0114,88175.0,88156.0,0.01134352]
[1767196290638,0.40937296,88164.0,88156.0,0.01134352]
[1767196290816,0.4579152,88168.0,88155.0,0.06806133]
[1767196291022,0.4579152,88168.0,88157.0,0.01134339]
[1767196291274,0.40937296,88167.0,88157.0,0.01134339]
[1767196291514,0.40937296,88167.0,88157.0,8.417e-05]
[1767196291710,0.40937296,88180.0,88167.0,0.000549]
[1767196291711,0.40937296,88170.0,88167.0,0.000549]
[1767196291866,0.40937296,88177.0,88167.0,0.000549]
[1767196292065,0.4579152,88176.0,88167.0,0.000549]
[1767196292265,0.4579152,88176.0,88159.0,0.21129693]
[1767196292450,0.40937296,88170.0,88159.0,0.21129693]
[1767196292666,0.40937296,88170.0,88160.0,0.01134301]
[1767196292993,0.40937296,88170.0,88159.0,0.26801251]
[1767196293193,0.40937296,88170.0,88159.0,0.21129693]
[1767196293343,0.40937296,88170.0,88159.0,0.19995379]
[1767196294182,0.4579152,88176.0,88170.0,0.000549]
[1767196294367,0.4579152,88176.0,88164.0,0.01134249]
[1767196294568,0.4579152,88176.0,88166.0,0.06805344]
[1767196294771,0.4579152,88176.0,88166.0,0.01134224]
[1767196295020,0.4579152,88176.0,88166.0,0.06805225]
[1767196295215,0.0114,88179.0,88168.0,0.01134198]
[1767196295417,0.0114,88179.0,88164.0,0.19995379]
[1767196295588,0.00055,88164.0,88157.0,8.417e-05]
[1767196295795,0.0114,88179.0,88157.0,8.417e-05]
[1767196295796,0.4579152,88169.0,88157.0,8.417e-05]
[1767196296551,0.4579152,88169.0,88157.0,0.01142756]
[1767196296819,0.4579152,88169.0,88157.0,8.417e-05]
[1767196301287,0.4579152,88169.0,88157.0,0.01142756]
[1767196301683,0.4579152,88169.0,88157.0,8.417e-05]
[1767196304345,0.40937296,88167.0,88157.0,8.417e-05]
[1767196304546,0.4579152,88166.0,88157.0,8.417e-05]
[1767196304953,0.4579152,88166.0,88151.0,0.0001789]
[1767196305158,0.4579152,88160.0,88151.0,0.00028496]
[1767196306839,0.0114,88165.0,88160.0,0.000549]
[1767196307015,0.01085,88165.0,88160.0,0.000549]
[1767196307316,0.01085,88165.0,88154.0,0.01134378]
[1767196307317,0.01085,88165.0,88157.0,0.01134339]
[1767196307678,0.86728816,88170.0,88156.0,0.01134352]
[1767196307874,0.87868816,88170.0,88156.0,0.06806114]
[1767196308081,0.87868816,88170.0,88156.0,0.01134352]
[1767196308286,0.87868816,88170.0,88158.0,0.01134327]
[1767196308511,0.87868816,88170.0,88157.0,0.01134339]
[1767196308716,0.87868816,88170.0,88156.0,0.01134352]
[1767196309096,0.87868816,88170.0,88155.0,0.01134365]
[1767196309300,0.87868816,88170.0,88157.0,0.01134339]
[1767196309500,0.87868816,88170.0,88156.0,0.06806091]
[1767196309706,0.87868816,88170.0,88156.0,0.01134352]
[1767196309915,0.87868816,88170.0,88156.0,0.06806102]
[1767196310078,0.4579152,88169.0,88155.0,0.01134365]
[1767196310279,0.4579152,88169.0,88154.0,0.21138174]
[1767196310478,0.4579152,88169.0,88154.0,0.26824357]
[1767196310914,0.4579152,88169.0,88154.0,0.21152474]
[1767196311160,0.4579152,88169.0,88155.0,0.20003796]
[1767196311516,0.4579152,88169.0,88155.0,0.000143]
[1767196312057,0.01134262,88163.0,88155.0,0.000143]
[1767196312214,0.46086484,88160.0,88152.0,0.0114]
[1767196312411,0.46086484,88160.0,88152.0,0.010993]
[1767196312615,0.46086484,88160.0,88151.0,0.00010606]
[1767196314547,0.46086484,88160.0,88148.0,0.0114]
[1767196314768,0.87034368,88160.0,88148.0,0.0114]
[1767196314944,0.46086484,88159.0,88148.0,0.0114]
[1767196316579,0.46086484,88157.0,88147.0,0.0001468]
[1767196317971,0.8702378,88157.0,88147.0,0.0001468]
[1767196318917,0.46086484,88157.0,88147.0,0.0001468]
[1767196319314,0.46086484,88159.0,88157.0,0.000549]
[1767196319455,0.46086484,88159.0,88147.0,0.0001468]
[1767196320408,0.46086484,88159.0,88148.0,0.05672274]
[1767196320714,0.46086484,88159.0,88147.0,0.0001468]
[1767196321010,0.46086484,88159.0,88147.0,0.01149148]
[1767196321377,0.00010588,88160.0,88152.0,0.01134404]
[1767196321578,0.00010588,88160.0,88152.0,0.06806375]
[1767196321796,0.00010588,88160.0,88156.0,0.01134352]
[1767196321995,0.00010588,88160.0,88157.0,0.06806026]
[1767196322197,0.41026677,88180.0,88152.0,0.02274404]
[1767196322198,0.00053932,88180.0,88167.0,0.06805215]
[1767196322375,8e-07,88177.0,88167.0,0.21339188]
[1767196322742,8e-07,88177.0,88167.0,0.0002]
[1767196322894,0.46086564,88177.0,88167.0,0.0002]
[1767196323475,0.88199309,88177.0,88159.0,0.05671556]
[1767196323709,0.46086484,88169.0,88160.0,0.0114]
[1767196325328,0.46086484,88169.0,88155.0,0.000146]
[1767196325512,0.46086484,88169.0,88156.0,0.07946057]
[1767196325853,0.46086484,88169.0,88158.0,0.05671606]
[1767196326011,0.46086484,88169.0,88158.0,0.06805933]
[1767196326618,0.46086484,88169.0,88157.0,0.06806034]
[1767196326930,0.46086484,88169.0,88158.0,0.01134327]
[1767196327287,0.46086484,88169.0,88159.0,0.01134314]
[1767196327787,0.46086484,88169.0,88162.0,0.01134275]
[1767196328391,0.45991184,88169.0,88166.0,0.01134224]
[1767196328530,0.45991184,88169.0,88165.0,0.01134236]
[1767196328885,0.46086484,88176.0,88167.0,0.01134211]
[1767196329090,0.46086484,88176.0,88166.0,0.06805308]
[1767196329435,0.46086484,88176.0,88166.0,0.01134224]
[1767196329641,0.46086484,88176.0,88167.0,0.01134211]
[1767196329841,0.00053932,88180.0,88177.0,0.056704]
[1767196330072,0.0001476,88186.0,88181.0,0.05670104]
[1767196330271,0.0001476,88186.0,88185.0,0.05669898]
[1767196330272,0.00023577,88186.0,88185.0,0.05669898]
[1767196330475,1e-08,88187.0,88186.0,0.05669834]
[1767196330875,1e-08,88187.0,88184.0,0.01133992]
[1767196331072,1e-08,88187.0,88179.0,0.01134056]
[1767196331377,1e-08,88187.0,88183.0,0.01134005]
[1767196331972,1e-08,88187.0,88180.0,0.01134044]
[1767196332210,1e-08,88187.0,88183.0,0.01134005]
[1767196332417,1e-08,88187.0,88182.0,0.01134018]
[1767196332626,1e-08,88187.0,88178.0,0.21400556]
[1767196332828,0.46086484,88181.0,88178.0,0.0114]
[1767196333036,0.46086484,88178.0,88176.0,0.0114]
[1767196333193,0.46086484,88178.0,88174.0,0.0114]
[1767196333730,0.46086484,88178.0,88171.0,0.0114]
[1767196334684,0.46086484,88178.0,88166.0,0.06805338]
[1767196334685,0.001099,88171.0,88159.0,0.04075887]
[1767196334830,0.46196384,88171.0,88162.0,0.07945634]
[1767196335034,0.46196384,88171.0,88164.0,0.05685924]
[1767196335239,0.46196384,88171.0,88165.0,0.06805385]
[1767196335240,0.46086484,88171.0,88165.0,0.06805385]
[1767196335636,0.46086484,88171.0,88164.0,0.0001468]